bitfinex/quotes_BTCUSD_20250421
["timestamp","ask_amount","ask_price","bid_price","bid_amount"]
[1745196145587,0.11944791,86486.0,86452.0,0.11739364]
[1745196146018,0.00289074,86485.0,86452.0,0.11624]
[1745196146237,0.11944791,86484.0,86453.0,0.11624]
[1745196146689,0.0473,86480.0,86453.0,0.11624]
[1745196146904,0.12233876,86479.0,86453.0,0.11624]
[1745196147126,0.01454085,86476.0,86441.0,0.004]
[1745196147371,0.0472,86477.0,86441.0,0.004]
[1745196147372,0.01454085,86474.0,86442.0,0.11624]
[1745196147598,0.01454085,86472.0,86442.0,0.11624]
[1745196147828,0.0472,86477.0,86443.0,0.0011548]
[1745196147829,0.01454085,86470.0,86443.0,0.0011548]
[1745196148054,0.11944791,86469.0,86443.0,0.0016065]
[1745196148283,0.11944791,86469.0,86443.0,0.0004517]
[1745196148735,0.11944791,86469.0,86444.0,0.0011548]
[1745196150095,0.00289132,86468.0,86443.0,0.0004517]
[1745196150308,0.11944791,86467.0,86443.0,0.0004517]
[1745196150647,0.11944791,86467.0,86444.0,0.00115481]
[1745196151298,0.11944791,86467.0,86443.0,0.3404517]
[1745196151778,0.31798527,86460.0,86443.0,0.0004517]
[1745196152027,0.02610849,86448.0,86443.0,0.0004517]
[1745196152261,0.0473,86445.0,86443.0,0.0004517]
[1745196152475,0.13688101,86444.0,86443.0,0.0004517]
[1745196152679,0.18408101,86444.0,86443.0,0.0004517]
[1745196153490,0.16664791,86444.0,86443.0,0.0004517]
[1745196154107,0.11944791,86444.0,86443.0,0.0004517]
[1745196154304,0.05259214,86458.0,86443.0,0.0004517]
[1745196154305,0.0497,86458.0,86443.0,0.0014517]
[1745196154526,0.11944791,86458.0,86444.0,0.00115517]
[1745196156042,0.11944791,86457.0,86443.0,0.0014517]
[1745196156223,0.11944791,86457.0,86444.0,0.0011554]
[1745196156458,0.11944791,86457.0,86443.0,0.0014517]
[1745196156931,0.11944791,86457.0,86444.0,0.00115541]
[1745196157936,0.11944791,86457.0,86443.0,0.0014517]
[1745196158141,0.11944791,86457.0,86444.0,0.00115541]
[1745196158372,0.00389145,86467.0,86444.0,0.00115541]
[1745196158493,0.11944791,86466.0,86443.0,0.0014517]
[1745196159429,0.001,86467.0,86444.0,0.049]
[1745196159629,0.001,86467.0,86445.0,0.45944791]
[1745196159951,0.00082129,86467.0,86446.0,0.00115414]
[1745196160154,0.00082129,86467.0,86459.0,0.001]
[1745196160478,0.19982129,86499.0,86472.0,0.001]
[1745196160682,0.19982129,86499.0,86464.0,0.389]
[1745196160683,0.19982129,86499.0,86475.0,0.001]
[1745196160909,0.19982129,86499.0,86476.0,0.00115196]
[1745196161488,0.19982129,86499.0,86481.0,0.049]
[1745196161694,0.19995666,86499.0,86482.0,0.23560791]
[1745196161896,0.19995666,86499.0,86492.0,0.001]
[1745196162074,0.19995666,86499.0,86498.0,0.0494]
[1745196162256,0.00362038,86507.0,86504.0,0.001]
[1745196162460,0.00362038,86507.0,86506.0,0.001]
[1745196162708,0.0004222,86509.0,86508.0,0.001]
[1745196162903,0.0004222,86526.0,86515.0,0.001]
[1745196163112,0.00055752,86526.0,86505.0,0.11616]
[1745196163557,0.00055752,86526.0,86506.0,0.12059803]
[1745196163759,0.00055752,86526.0,86509.0,0.001]
[1745196163996,0.00055752,86526.0,86510.0,0.12059707]
[1745196164353,0.00055752,86526.0,86510.0,0.11944791]
[1745196164552,0.00055752,86526.0,86511.0,0.34]
[1745196164823,0.00055752,86526.0,86513.0,0.34]
[1745196165359,0.00055752,86526.0,86513.0,0.57560791]
[1745196165702,0.00055752,86526.0,86513.0,0.45616]
[1745196166039,0.12233677,86525.0,86488.0,0.16516]
[1745196166240,0.11944791,86525.0,86489.0,0.11944791]
[1745196166484,0.11944791,86525.0,86489.0,0.23560791]
[1745196166692,0.00155752,86526.0,86489.0,0.23660791]
[1745196166890,0.12100543,86526.0,86490.0,0.34115073]
[1745196167101,0.12100543,86526.0,86492.0,0.34]
[1745196167268,0.12100543,86526.0,86494.0,0.34]
[1745196167473,0.12100543,86526.0,86495.0,0.11944791]
[1745196167671,0.12100543,86526.0,86496.0,0.00115055]
[1745196167874,0.12100543,86526.0,86498.0,0.34]
[1745196168097,0.12100543,86526.0,86500.0,0.34]
[1745196168303,0.12100543,86526.0,86501.0,0.00115055]
[1745196168502,0.12100543,86526.0,86493.0,0.11612]
[1745196168740,0.12100543,86526.0,86494.0,0.11944791]
[1745196169470,0.11944791,86525.0,86494.0,0.11944791]
[1745196170651,0.11944791,86525.0,86493.0,0.11612]
[1745196170652,0.01454085,86524.0,86493.0,0.11612]
[1745196170857,0.12233721,86523.0,86493.0,0.11612]
[1745196171341,0.01454085,86512.0,86466.0,0.0474]
[1745196171556,0.01454085,86510.0,86472.0,0.11612]
[1745196171761,0.12233796,86509.0,86473.0,0.34]
[1745196172092,0.047,86512.0,86473.0,0.34]
[1745196172093,0.047,86512.0,86475.0,0.34]
[1745196172298,0.051,86529.0,86493.0,0.09254493]
[1745196172421,0.12100543,86526.0,86495.0,0.34]
[1745196172643,0.00155752,86526.0,86497.0,0.341]
[1745196172847,0.00155752,86526.0,86502.0,0.09254493]
[1745196173230,0.00155752,86526.0,86505.0,0.0474]
[1745196173444,0.00155752,86526.0,86512.0,0.001]
[1745196173657,0.00155752,86526.0,86514.0,0.34]
[1745196173900,0.00155752,86526.0,86517.0,0.34]
[1745196174097,0.00155752,86526.0,86519.0,0.34]
[1745196174299,0.00155752,86526.0,86521.0,0.34]
[1745196174498,0.00155752,86526.0,86523.0,0.34]
[1745196174651,0.00155752,86526.0,86525.0,0.34]
[1745196174816,0.00155752,86526.0,86525.0,0.45944791]
[1745196175469,0.00155752,86526.0,86524.0,0.11612]
[1745196175664,0.00155752,86526.0,86524.0,0.23556791]
[1745196176905,0.00155752,86526.0,86509.0,0.001]
[1745196177110,0.00155752,86526.0,86510.0,0.23556791]
[1745196178530,0.00155752,86526.0,86510.0,0.11612]
[1745196178861,0.24271941,86520.0,86489.0,0.11612]
[1745196179085,0.11944791,86519.0,86484.0,0.11612]
[1745196179288,0.0452,86511.0,86463.0,0.001]
[1745196179484,0.01155949,86509.0,86474.0,0.11608]
[1745196179695,0.13389751,86508.0,86474.0,0.11608]
[1745196179908,0.12233789,86508.0,86474.0,0.11608]
[1745196180108,0.12233789,86508.0,86475.0,0.34]
[1745196180309,0.11944791,86508.0,86476.0,0.00115212]
[1745196180551,0.11944791,86508.0,86477.0,0.11944791]
[1745196180829,0.047,86510.0,86478.0,0.0011518]
[1745196181046,0.047,86510.0,86477.0,0.11944791]
[1745196181047,0.11944791,86509.0,86479.0,0.11944791]
[1745196181511,0.12699315,86520.0,86485.0,0.001]
[1745196181716,0.12699315,86520.0,86487.0,0.34]
[1745196181912,0.12699315,86520.0,86489.0,0.34]
[1745196182123,0.0004209,86533.0,86495.0,0.001]
[1745196182256,0.0004209,86533.0,86497.0,0.341]
[1745196182458,0.0004209,86533.0,86499.0,0.34]
[1745196182809,0.0004209,86533.0,86500.0,0.12059769]
[1745196183151,0.0004209,86533.0,86500.0,0.11944791]
[1745196183358,0.0004209,86533.0,86500.0,0.12059807]
[1745196185435,0.0004209,86533.0,86506.0,0.001]
[1745196185652,0.0004209,86533.0,86507.0,0.11944791]
[1745196186052,0.0004209,86533.0,86509.0,0.34]
[1745196186388,0.16944791,86525.0,86507.0,0.11604]
[1745196186602,0.16944791,86525.0,86502.0,0.11604]
[1745196186804,0.0004209,86533.0,86503.0,0.00115056]
[1745196187067,0.0004209,86533.0,86505.0,0.34]
[1745196187194,0.0004209,86533.0,86507.0,0.34]
[1745196187412,0.0004209,86533.0,86509.0,0.34]
[1745196187606,0.0004209,86533.0,86511.0,0.34]
[1745196187868,0.0004209,86533.0,86513.0,0.34]
[1745196188071,0.0004209,86533.0,86514.0,0.00114942]
[1745196188582,0.0004209,86533.0,86515.0,0.11944791]
[1745196188784,0.0004209,86533.0,86516.0,0.00114931]
[1745196189157,0.001,86531.0,86505.0,0.34]
[1745196189764,0.11944791,86525.0,86505.0,0.34]
[1745196189966,0.16944791,86525.0,86504.0,0.11704]
[1745196190580,0.16944791,86525.0,86505.0,0.00115057]
[1745196190789,0.05,86524.0,86505.0,0.34]
[1745196191164,0.16944791,86523.0,86505.0,0.34]
[1745196191364,0.001,86514.0,86504.0,0.001]
[1745196191544,0.001,86510.0,86504.0,0.001]
[1745196191747,0.11944791,86509.0,86504.0,0.001]
[1745196193488,0.00288974,86523.0,86504.0,0.001]
[1745196193489,0.05,86517.0,86504.0,0.001]
[1745196193784,0.11944791,86516.0,86505.0,0.00115165]
[1745196193989,0.05,86514.0,86505.0,0.00115165]
[1745196194231,0.11944791,86513.0,86505.0,0.00115165]
[1745196194811,0.001,86521.0,86505.0,0.00115165]
[1745196194975,0.11944791,86520.0,86505.0,0.00115165]
[1745196195175,0.0486,86527.0,86505.0,0.0011509]
[1745196195511,0.0504209,86533.0,86505.0,0.12059834]
[1745196195673,0.0004209,86533.0,86505.0,0.12059834]
[1745196196521,0.00131154,86526.0,86507.0,0.34]
[1745196196682,0.00131154,86526.0,86509.0,0.34]
[1745196196877,0.00131154,86526.0,86508.0,0.12059752]
[1745196196878,0.00131154,86526.0,86511.0,0.34]
[1745196197156,0.00131154,86526.0,86511.0,0.45944791]
[1745196197343,0.00131154,86526.0,86511.0,0.34]
[1745196197907,0.00131154,86526.0,86510.0,0.11604]
[1745196197908,0.00131154,86526.0,86513.0,0.34]
[1745196198117,0.00131154,86526.0,86515.0,0.34]
[1745196198323,0.00131154,86526.0,86517.0,0.34]
[1745196198521,0.00131154,86526.0,86519.0,0.34]
[1745196201168,0.00131154,86526.0,86510.0,0.11604]
[1745196201992,0.00131154,86526.0,86511.0,0.00114978]
[1745196202179,0.00131154,86526.0,86511.0,0.12059769]
[1745196202442,0.00131154,86526.0,86511.0,0.19010769]
[1745196203011,0.00131154,86526.0,86511.0,0.18895791]
[1745196203168,0.00131154,86526.0,86504.0,0.001]
[1745196203368,0.00131154,86526.0,86505.0,0.2366376]
[1745196204226,0.00131154,86526.0,86506.0,0.34]
[1745196204410,0.00131154,86526.0,86505.0,0.23548791]
[1745196204411,0.00131154,86526.0,86511.0,0.34]
[1745196205025,0.04701154,86526.0,86505.0,0.11604]
[1745196205249,0.001,86521.0,86505.0,0.116]
[1745196205572,0.16834791,86520.0,86506.0,0.00115048]
[1745196205765,0.16834791,86520.0,86506.0,0.34115048]
[1745196205924,0.16834791,86520.0,86505.0,0.116]
[1745196206123,0.16834791,86520.0,86506.0,0.0011509]
[1745196206424,0.16834791,86520.0,86505.0,0.116]
[1745196206829,0.16834791,86520.0,86506.0,0.3411509]
[1745196207033,0.16834791,86520.0,86506.0,0.34]
[1745196207210,0.16834791,86520.0,86507.0,0.0011509]
[1745196207410,0.0489,86523.0,86507.0,0.0011509]
[1745196207608,0.00131154,86526.0,86507.0,0.0011509]
[1745196210107,0.00131154,86526.0,86506.0,0.34]
[1745196210832,0.00031154,86526.0,86506.0,0.34]
[1745196211151,0.00031154,86526.0,86507.0,0.00115034]
[1745196211558,0.00031154,86526.0,86506.0,0.34]
[1745196213974,0.00031154,86526.0,86507.0,0.00115036]
[1745196214845,0.00031154,86526.0,86506.0,0.34]
[1745196215487,0.00031154,86526.0,86491.0,0.09254493]
[1745196215488,0.00031154,86526.0,86510.0,0.38626732]
[1745196215687,0.00031154,86526.0,86517.0,0.09254493]
[1745196215802,0.00031154,86526.0,86518.0,0.11944791]
[1745196217614,0.00031154,86526.0,86519.0,0.00114889]
[1745196217746,0.00031154,86526.0,86520.0,0.11944791]
[1745196217947,0.00031154,86526.0,86521.0,0.0011485]
[1745196218146,0.00031154,86526.0,86522.0,0.12059647]
[1745196218351,0.00031154,86526.0,86523.0,0.34]
[1745196218574,0.00031154,86526.0,86525.0,0.34]
[1745196218832,0.00031154,86526.0,86525.0,0.70329374]
[1745196222389,0.00031154,86526.0,86525.0,0.45944791]
[1745196223609,0.00031154,86526.0,86511.0,0.24384583]
[1745196223822,0.00031154,86526.0,86512.0,0.11596]
[1745196224016,0.00031154,86526.0,86513.0,0.00114979]
[1745196224358,0.00031154,86526.0,86514.0,0.11596]
[1745196225540,0.00031154,86526.0,86515.0,0.34]
[1745196225788,0.00031154,86526.0,86517.0,0.34]
[1745196225959,0.00031154,86526.0,86519.0,0.34]
[1745196226160,0.00031154,86526.0,86521.0,0.34]
[1745196226368,0.00031154,86526.0,86521.0,0.45944791]
[1745196229024,0.00031154,86526.0,86522.0,0.11944791]
[1745196230542,0.00031154,86526.0,86522.0,0.11444791]
[1745196230716,0.00015304,86542.0,86522.0,0.11444791]
[1745196232040,0.00015304,86542.0,86530.0,0.31675732]
[1745196232305,0.00015304,86542.0,86531.0,0.11944791]
[1745196232518,0.00015304,86542.0,86532.0,0.34]
[1745196232732,0.00015304,86542.0,86534.0,0.34]
[1745196232907,0.00015304,86542.0,86536.0,0.34]
[1745196233110,0.00015304,86542.0,86538.0,0.34]
[1745196233319,0.00015304,86542.0,86540.0,0.34]
[1745196233494,0.00015304,86542.0,86541.0,0.45944791]
[1745196234301,0.00015304,86542.0,86541.0,0.52895791]
[1745196234527,0.0462,86584.0,86545.0,0.06951]
[1745196234528,0.0491,86582.0,86545.0,0.06951]
[1745196234727,0.0041353,86559.0,86547.0,0.34]
[1745196234933,0.0041353,86559.0,86549.0,0.34]
[1745196235180,0.0041353,86559.0,86551.0,0.34]
[1745196235360,0.0041353,86559.0,86551.0,0.45944791]
[1745196235705,0.0041353,86559.0,86553.0,0.34]
[1745196235905,0.0041353,86559.0,86555.0,0.34]
[1745196236105,0.0041353,86559.0,86556.0,0.11944791]
[1745196236307,0.0041353,86559.0,86557.0,0.98944]
[1745196236516,0.0041353,86559.0,86558.0,0.11944791]
[1745196240007,0.0041353,86559.0,86558.0,0.21349877]
[1745196240449,0.0041353,86559.0,86558.0,0.11944791]
[1745196240689,0.0041353,86559.0,86558.0,0.11592]
[1745196240894,0.0051353,86559.0,86558.0,0.11592]
[1745196241502,0.0051353,86559.0,86557.0,0.98944]
[1745196241933,0.0051353,86559.0,86558.0,0.11592]
[1745196243829,0.0051353,86559.0,86558.0,0.23536791]
[1745196244634,0.0051353,86559.0,86558.0,0.11592]
[1745196245818,0.0051353,86559.0,86558.0,0.23536791]
[1745196246069,0.0051353,86559.0,86558.0,0.39842284]
[1745196246290,7e-05,86580.0,86558.0,0.39842284]
[1745196246513,7e-05,86580.0,86559.0,0.21349877]
[1745196246689,7e-05,86580.0,86560.0,0.11584]
[1745196246849,7e-05,86580.0,86562.0,0.34]
[1745196247447,0.12044791,86579.0,86564.0,0.34]
[1745196247644,0.0487,86578.0,86564.0,0.34]
[1745196247968,0.0487,86578.0,86566.0,0.34]
[1745196248798,0.0487,86578.0,86567.0,0.11584]
[1745196249026,0.0487,86578.0,86568.0,0.34]
[1745196249958,7e-05,86580.0,86568.0,0.34]
[1745196251924,7e-05,86580.0,86559.0,0.09405086]
[1745196252133,7e-05,86580.0,86569.0,0.11584]
[1745196252592,7e-05,86580.0,86560.0,0.11944791]
[1745196252795,0.0489,86573.0,86570.0,0.11584]
[1745196252995,0.16814791,86579.0,86558.0,0.002]
[1745196252996,0.0499,86570.0,86566.0,0.11584]
[1745196253419,0.0487,86572.0,86566.0,0.11584]
[1745196253833,0.0489,86570.0,86566.0,0.11584]
[1745196254473,0.0489,86571.0,86566.0,0.11584]
[1745196254691,0.0489,86570.0,86566.0,0.11584]
[1745196256855,0.0499,86570.0,86566.0,0.11584]
[1745196258296,0.0986,86559.0,86558.0,0.002]
[1745196258494,0.26674791,86559.0,86558.0,0.002]
[1745196258923,0.0489,86543.0,86517.0,0.98916]
[1745196259143,0.0499,86539.0,86531.0,0.11584]
[1745196259313,0.0488,86537.0,86531.0,0.11584]
[1745196259889,0.0488,86537.0,86521.0,0.0001353]
[1745196260094,0.0488,86537.0,86521.0,0.1159753]
[1745196260316,0.0488,86537.0,86521.0,0.0001353]
[1745196260620,0.0488,86537.0,86522.0,0.11584]
[1745196260862,0.001,86534.0,86522.0,0.11584]
[1745196261025,0.001,86527.0,86521.0,0.0001353]
[1745196261227,0.0499,86527.0,86521.0,0.0001353]
[1745196261587,0.001,86522.0,86521.0,0.0001353]
[1745196261807,0.04879044,86526.0,86521.0,0.0001353]
[1745196261936,0.12688359,86536.0,86521.0,0.0001353]
[1745196262155,0.04868088,86534.0,86521.0,0.0001353]
[1745196262372,0.04868088,86533.0,86521.0,0.0001353]
[1745196262700,0.12688359,86536.0,86521.0,0.0001353]
[1745196263525,0.12688359,86536.0,86523.0,0.34]
[1745196263681,0.12688359,86536.0,86525.0,0.34]
[1745196263887,0.001,86551.0,86527.0,0.34]
[1745196264084,0.09248088,86553.0,86529.0,0.34]
[1745196264288,0.001,86551.0,86529.0,0.34]
[1745196264507,0.04368088,86545.0,86523.0,0.001]
[1745196264957,0.11944791,86550.0,86524.0,0.11588]
[1745196264958,0.04368088,86536.0,86524.0,0.11588]
[1745196265110,0.001,86531.0,86524.0,0.11588]
[1745196266349,0.04368088,86533.0,86524.0,0.11588]
[1745196267275,0.04368088,86533.0,86523.0,0.001]
[1745196267499,0.04368088,86533.0,86524.0,0.11588]
[1745196267705,0.001,86524.0,86523.0,0.001]
[1745196267910,0.04468088,86524.0,86523.0,0.001]
[1745196268386,0.16412879,86524.0,86523.0,0.001]
[1745196269871,0.04368088,86527.0,86523.0,0.001]
[1745196270072,0.04368088,86524.0,86523.0,0.001]
[1745196270886,0.04368088,86523.0,86521.0,0.0001353]
[1745196271286,0.001,86522.0,86521.0,0.0001353]
[1745196271489,0.16412879,86522.0,86521.0,0.0001353]
[1745196271709,0.21302879,86522.0,86521.0,0.0001353]
[1745196271906,0.26182879,86522.0,86521.0,0.0001353]
[1745196272713,0.21714791,86522.0,86521.0,0.0001353]
[1745196272910,0.0488,86522.0,86521.0,0.0001353]
[1745196275528,0.16924791,86522.0,86521.0,0.0001353]
[1745196275732,0.21581827,86522.0,86521.0,0.0001353]
[1745196277221,0.26232879,86522.0,86521.0,0.0001353]
[1745196277419,0.04468088,86508.0,86499.0,0.1158]
[1745196277622,0.16701868,86508.0,86507.0,0.00097912]
[1745196277828,0.26242879,86508.0,86507.0,0.00097912]
[1745196278032,0.04468088,86502.0,86486.0,0.0008436]
[1745196278364,0.16412879,86502.0,86486.0,0.0008436]
[1745196278741,0.04468088,86489.0,86486.0,0.0008436]
[1745196278942,0.21302879,86489.0,86488.0,0.0012953]
[1745196279312,0.26242879,86489.0,86488.0,0.0012953]
[1745196279507,0.27696964,86489.0,86488.0,0.0012953]
[1745196279769,0.26242879,86489.0,86488.0,0.0012953]
[1745196280586,0.40385323,86489.0,86488.0,0.0012953]
[1745196281135,0.6350965,86489.0,86488.0,0.0012953]
[1745196281757,0.04468088,86477.0,86476.0,0.0008442]
[1745196281916,0.16701999,86477.0,86476.0,0.00097957]
[1745196282173,0.27986084,86477.0,86476.0,0.00097957]
[1745196282377,0.27696964,86477.0,86476.0,0.00097957]
[1745196282800,0.27696964,86477.0,86461.0,0.0008412]
[1745196282801,0.05922173,86473.0,86461.0,0.0008412]
[1745196283006,0.18156127,86473.0,86461.0,0.0008412]
[1745196283224,0.30844486,86473.0,86461.0,0.0008412]
[1745196283448,0.30555323,86473.0,86461.0,0.0008412]
[1745196283655,0.05922173,86466.0,86461.0,0.0008412]
[1745196283890,0.30844517,86466.0,86461.0,0.0008412]
[1745196284217,0.30555323,86466.0,86461.0,0.0008412]
[1745196285276,0.29101238,86466.0,86461.0,0.0008412]
[1745196285730,0.29101238,86466.0,86463.0,0.01156564]
[1745196290009,0.30555323,86466.0,86463.0,0.01156564]
[1745196291054,0.30555323,86466.0,86461.0,0.0008412]
[1745196291242,0.30455323,86466.0,86463.0,0.01156564]
[1745196291445,0.30555323,86466.0,86463.0,0.01156564]
[1745196291848,0.2473315,86466.0,86463.0,0.01156564]
[1745196292002,0.29001238,86466.0,86463.0,0.01156564]
[1745196292420,0.11944791,86466.0,86463.0,0.01156564]
[1745196292622,0.001,86472.0,86465.0,0.0018412]
[1745196292939,0.01781478,86469.0,86465.0,0.0018412]
[1745196293142,0.00289124,86488.0,86465.0,0.0018412]
[1745196293143,0.00740284,86477.0,86465.0,0.0018412]
[1745196293492,0.00289124,86488.0,86465.0,0.0018412]
[1745196293493,0.001,86483.0,86465.0,0.0469412]
[1745196293694,0.00013518,86488.0,86465.0,0.0469412]
[1745196293870,0.00013518,86488.0,86466.0,0.34]
[1745196294021,0.00013518,86488.0,86466.0,0.45944791]
[1745196294224,0.00013518,86488.0,86466.0,0.34]
[1745196294428,0.001,86484.0,86468.0,0.34]
[1745196294864,0.11958309,86488.0,86468.0,0.34]
[1745196294865,0.00013518,86488.0,86468.0,0.34]
[1745196297116,0.00013518,86488.0,86469.0,0.11588]
[1745196297491,0.00013518,86488.0,86470.0,0.11588]
[1745196299500,0.00013518,86488.0,86470.0,0.23532791]
[1745196299710,0.00013518,86488.0,86471.0,0.34]
[1745196300341,0.00013518,86488.0,86473.0,0.34]
[1745196300541,0.00013518,86488.0,86470.0,0.43233305]
[1745196300542,0.00013518,86488.0,86476.0,0.0451]
[1745196300754,0.00013518,86488.0,86478.0,0.34]
[1745196300950,0.00013518,86488.0,86480.0,0.34]
[1745196301199,0.00013518,86488.0,86482.0,0.34]
[1745196301406,0.00013518,86488.0,86484.0,0.34]
[1745196301614,0.00013518,86488.0,86486.0,0.34]
[1745196301828,0.00013518,86488.0,86487.0,0.45944791]
[1745196302045,0.00013518,86488.0,86487.0,0.55349877]
[1745196302436,0.0014223,86523.0,86497.0,0.34]
[1745196302672,0.00087364,86506.0,86499.0,0.34]
[1745196302885,0.00087364,86506.0,86501.0,0.3757]
[1745196303069,0.00087364,86506.0,86503.0,0.34]
[1745196303270,0.00087364,86506.0,86505.0,0.34]
[1745196303478,0.00087364,86506.0,86505.0,0.16814791]
[1745196303780,0.0014223,86523.0,86510.0,0.31645305]
[1745196303922,0.00155765,86523.0,86512.0,0.11944791]
[1745196306097,0.00155765,86523.0,86513.0,0.11584]
[1745196306321,0.00155765,86523.0,86514.0,0.11944791]
[1745196306905,0.00155765,86523.0,86515.0,0.34]
[1745196307109,0.00155765,86523.0,86517.0,0.34]
[1745196307273,0.00155765,86523.0,86519.0,0.34]
[1745196307475,0.00155765,86523.0,86521.0,0.34]
[1745196307677,0.00155765,86523.0,86522.0,0.45944791]
[1745196308495,0.00155765,86523.0,86522.0,0.55349877]
[1745196309685,0.0034226,86559.0,86524.0,0.01454085]
[1745196309889,0.09254493,86558.0,86531.0,0.45944791]
[1745196310450,0.09254493,86558.0,86532.0,0.1]
[1745196310650,0.00355792,86559.0,86540.0,0.31645305]
[1745196310855,0.00355792,86559.0,86541.0,0.23520791]
[1745196311597,0.09254493,86557.0,86541.0,0.23520791]
[1745196311797,0.09254493,86557.0,86541.0,0.11576]
[1745196312009,0.00840284,86554.0,86542.0,0.11576]
[1745196312183,0.00840284,86554.0,86543.0,0.11576]
[1745196312588,0.00840284,86554.0,86544.0,0.11576]
[1745196312783,0.00840284,86554.0,86545.0,0.11576]
[1745196313105,0.00740284,86548.0,86545.0,0.11576]
[1745196314155,0.001,86552.0,86545.0,0.11576]
[1745196314346,0.00355792,86559.0,86546.0,0.45944791]
[1745196316351,0.001,86556.0,86546.0,0.34]
[1745196316702,0.00740284,86558.0,86547.0,0.11944791]
[1745196316831,0.00740284,86558.0,86548.0,0.34]
[1745196317437,0.001,86556.0,86545.0,0.11576]
[1745196318428,0.00355792,86559.0,86545.0,0.11576]
[1745196318727,0.00355792,86559.0,86546.0,0.11944791]
[1745196321116,0.00355792,86559.0,86547.0,0.34]
[1745196321737,0.00355792,86559.0,86548.0,0.11944791]
[1745196321942,0.00355792,86559.0,86550.0,0.34]
[1745196322157,0.00355792,86559.0,86552.0,0.34]
[1745196322369,0.00355792,86559.0,86554.0,0.52865791]
[1745196322575,0.000422,86568.0,86558.0,0.18865791]
[1745196322770,0.000422,86568.0,86558.0,0.11944791]
[1745196322953,0.000422,86568.0,86559.0,0.34]
[1745196323158,0.000422,86568.0,86561.0,0.34]
[1745196323960,0.000422,86568.0,86563.0,0.34]
[1745196324161,0.000422,86568.0,86562.0,0.11572]
[1745196324390,0.00740284,86565.0,86562.0,0.11572]
[1745196325201,0.00740284,86566.0,86554.0,0.001]
[1745196325396,0.00740284,86565.0,86562.0,0.11572]
[1745196325899,0.000422,86568.0,86562.0,0.11572]
[1745196326336,0.000422,86568.0,86562.0,0.23516791]
[1745196327633,0.000422,86568.0,86564.0,0.0469]
[1745196327788,0.000422,86568.0,86565.0,0.11944791]
[1745196327988,0.000422,86568.0,86566.0,0.34]
[1745196328207,0.000422,86568.0,86567.0,0.45944791]
[1745196328611,0.0004226,86575.0,86568.0,0.34]
[1745196328814,0.0004226,86575.0,86570.0,0.34]
[1745196329038,0.0004226,86575.0,86572.0,0.34]
[1745196329235,0.0004226,86575.0,86565.0,0.31645305]
[1745196329236,0.0004226,86575.0,86574.0,0.34]
[1745196329468,0.0004226,86575.0,86574.0,0.45944791]
[1745196330775,0.0129021,86593.0,86575.0,0.06921]
[1745196330988,0.00413527,86589.0,86581.0,0.34]
[1745196331187,0.00413527,86589.0,86583.0,0.34]
[1745196331385,0.00413527,86589.0,86585.0,0.34]
[1745196331613,0.00413527,86589.0,86586.0,0.11944791]
[1745196332347,0.00413527,86589.0,86588.0,0.11944791]
[1745196332779,0.00413527,86589.0,86588.0,0.16884791]
[1745196332987,1e-08,86594.0,86593.0,0.08375085]
[1745196333163,0.00740284,86628.0,86593.0,0.33672249]
[1745196333364,0.00740284,86628.0,86606.0,0.15648578]
[1745196333592,0.01072515,86661.0,86619.0,0.06921]
[1745196333593,0.00740284,86660.0,86619.0,0.06921]
[1745196333749,0.00740284,86660.0,86639.0,0.31645305]
[1745196333946,0.01072515,86661.0,86639.0,0.31645305]
[1745196334146,0.01072515,86661.0,86641.0,0.08375085]
[1745196334397,0.06396,86678.0,86653.0,0.06921]
[1745196334398,0.01696,86678.0,86653.0,0.06921]
[1745196334750,0.18723125,86688.0,86676.0,0.11183809]
[1745196334927,0.17576831,86688.0,86680.0,0.11944791]
[1745196335165,0.06633466,86688.0,86683.0,0.34]
[1745196335367,0.01244733,86705.0,86689.0,0.06921]
[1745196335567,0.03777544,86723.0,86688.0,0.37652099]
[1745196335568,0.03777544,86723.0,86697.0,0.0478]
[1745196335776,0.03777544,86723.0,86711.0,0.34]
[1745196335950,0.03777544,86723.0,86713.0,0.34]
[1745196336154,0.03777544,86723.0,86713.0,0.45944791]
[1745196336306,0.03822644,86723.0,86713.0,0.45944791]
[1745196336545,0.03822644,86723.0,86722.0,0.11944791]
[1745196336752,0.03822644,86723.0,86722.0,0.23508791]
[1745196338571,0.0304445,86723.0,86722.0,0.24962876]
[1745196338780,0.0304445,86723.0,86722.0,0.34962876]
[1745196339425,0.0304445,86723.0,86722.0,0.34950876]
[1745196340643,0.0304445,86723.0,86722.0,0.33496791]
[1745196341010,0.0304445,86723.0,86715.0,0.11552]
[1745196341424,0.0304445,86723.0,86716.0,0.11944791]
[1745196341627,0.0304445,86723.0,86717.0,0.11944791]
[1745196341832,0.0304445,86723.0,86722.0,0.11944791]
[1745196342231,0.0304445,86723.0,86722.0,0.23492791]
[1745196342442,0.0304445,86723.0,86722.0,0.21944791]
[1745196342663,0.00740284,86722.0,86703.0,0.11548]
[1745196342923,0.00740284,86710.0,86704.0,0.23492791]
[1745196343205,0.001,86702.0,86695.0,0.11548]
[1745196343414,0.00840284,86700.0,86670.0,0.44169093]
[1745196343589,0.001,86687.0,86683.0,0.11548]
[1745196343787,0.001,86680.0,86641.0,0.98776]
[1745196344099,0.00740284,86675.0,86660.0,0.44169093]
[1745196344297,0.00740284,86675.0,86661.0,0.11944791]
[1745196344502,0.00740284,86691.0,86667.0,0.1]
[1745196344700,0.0461,86700.0,86680.0,0.44169093]
[1745196344701,0.00740284,86699.0,86680.0,0.44169093]
[1745196344955,0.00740284,86693.0,86682.0,0.34]
[1745196345147,0.00740284,86693.0,86680.0,0.44169093]
[1745196345435,0.00740284,86694.0,86681.0,0.45944791]
[1745196345635,0.001,86708.0,86684.0,0.44169093]
[1745196345747,0.000451,86713.0,86698.0,0.44169093]
[1745196345954,0.00785384,86713.0,86699.0,0.11944791]
[1745196346613,0.00740284,86712.0,86699.0,0.11944791]
[1745196347870,0.02825673,86721.0,86718.0,0.01153163]
[1745196348069,0.0001352,86721.0,86720.0,0.01153136]
[1745196348275,0.0001352,86721.0,86720.0,0.13097927]
[1745196348727,0.000422,86736.0,86720.0,0.13097927]
[1745196348939,0.000422,86736.0,86722.0,0.11944791]
[1745196349154,0.000422,86736.0,86720.0,0.01153136]